bitfinex/quotes_BTCUSD_20241003
["timestamp","ask_amount","ask_price","bid_price","bid_amount"]
[1727966631328,0.0499311,60442.0,60441.0,0.28845]
[1727966631542,0.0499311,60442.0,60441.0,0.011]
[1727966631798,0.2153781,60442.0,60441.0,0.018]
[1727966632015,0.23324925,60442.0,60441.0,0.018]
[1727966632274,0.165464,60436.0,60425.0,0.330983]
[1727966632510,0.165464,60436.0,60424.0,0.24872116]
[1727966632511,0.0499311,60435.0,60431.0,0.24872116]
[1727966632764,0.04984801,60434.0,60433.0,0.165472]
[1727966633448,0.04984801,60434.0,60433.0,0.42865871]
[1727966634127,0.04984801,60434.0,60433.0,0.43465871]
[1727966634619,0.04984801,60434.0,60433.0,0.271472]
[1727966634849,0.04984801,60434.0,60433.0,0.016]
[1727966635088,0.21531701,60434.0,60433.0,0.006]
[1727966635301,0.21531701,60434.0,60433.0,0.019]
[1727966635522,0.04984801,60434.0,60433.0,0.019]
[1727966635735,0.21531701,60434.0,60433.0,0.006]
[1727966635970,0.21531701,60434.0,60430.0,0.26548]
[1727966636208,0.10695729,60436.0,60432.0,0.165475]
[1727966636209,0.04984801,60433.0,60432.0,0.165475]
[1727966636434,0.04984801,60433.0,60432.0,0.42866171]
[1727966636681,0.27434486,60443.0,60433.0,0.1]
[1727966636892,0.330943,60434.0,60429.0,0.00427845]
[1727966637114,0.1221241,60441.0,60432.0,0.165472]
[1727966637115,0.04941048,60433.0,60432.0,0.165472]
[1727966637333,0.04941048,60433.0,60431.0,0.330952]
[1727966637334,0.0256241,60437.0,60435.0,0.165465]
[1727966637572,0.0965,60441.0,60436.0,0.165464]
[1727966637573,0.24872116,60441.0,60436.0,0.165464]
[1727966637802,0.06705713,60440.0,60437.0,0.16546]
[1727966638038,0.06705713,60439.0,60429.0,0.006]
[1727966638254,0.06705713,60438.0,60432.0,0.496421]
[1727966638477,0.06705713,60438.0,60429.0,0.006]
[1727966638478,0.165464,60436.0,60435.0,0.003]
[1727966638700,0.21489568,60436.0,60435.0,0.003]
[1727966639144,0.21489568,60436.0,60433.0,0.16547]
[1727966639357,0.04943168,60435.0,60432.0,0.165474]
[1727966639573,0.04943168,60434.0,60432.0,0.165474]
[1727966639824,0.35653878,60439.0,60432.0,0.165474]
[1727966639825,0.04943168,60433.0,60432.0,0.165474]
[1727966640040,0.04943168,60433.0,60432.0,0.32866071]
[1727966640298,0.04943168,60433.0,60432.0,0.42866071]
[1727966640523,0.02593453,60445.0,60432.0,0.42866071]
[1727966640524,0.24872116,60443.0,60442.0,0.165447]
[1727966640782,0.165464,60437.0,60432.0,0.265474]
[1727966640986,0.165464,60437.0,60429.0,0.07826048]
[1727966640987,0.04921304,60436.0,60429.0,0.35304309]
[1727966641217,0.31195289,60443.0,60432.0,0.014]
[1727966641218,0.165475,60433.0,60432.0,0.014]
[1727966641430,0.165475,60433.0,60432.0,0.007]
[1727966641431,0.21468804,60433.0,60432.0,0.007]
[1727966642133,0.21468504,60433.0,60432.0,0.007]
[1727966642599,0.0756,60430.0,60424.0,0.00424877]
[1727966642814,0.165493,60426.0,60424.0,0.1]
[1727966643047,0.21470704,60425.0,60424.0,0.1]
[1727966643331,0.331001,60423.0,60418.0,0.00438311]
[1727966643538,0.01894582,60422.0,60420.0,0.165506]
[1727966643768,0.01894582,60421.0,60420.0,0.165508]
[1727966644429,0.165524,60414.0,60412.0,0.00419401]
[1727966644696,0.01894582,60413.0,60412.0,0.16553]
[1727966645121,0.01894582,60413.0,60412.0,0.32871671]
[1727966645841,0.24872116,60421.0,60412.0,0.16318671]
[1727966646079,0.24872116,60421.0,60419.0,0.16551]
[1727966646080,0.04916087,60420.0,60419.0,0.16551]
[1727966646309,0.01890803,60420.0,60419.0,0.16551]
[1727966646785,0.165497,60424.0,60421.0,0.165504]
[1727966647001,0.24872116,60429.0,60417.0,0.165515]
[1727966647002,0.165508,60420.0,60417.0,0.165515]
[1727966647239,0.165508,60420.0,60419.0,0.001]
[1727966647472,0.1843972,60420.0,60419.0,0.001]
[1727966647711,0.0188892,60420.0,60419.0,0.003]
[1727966647935,0.0188892,60420.0,60419.0,0.33169671]
[1727966648146,0.24872116,60429.0,60425.0,0.330985]
[1727966648365,0.001,60420.0,60419.0,0.42969671]
[1727966648608,0.24872116,60436.0,60419.0,0.54853398]
[1727966648830,0.24872116,60436.0,60435.0,0.165467]
[1727966649256,0.02593675,60449.0,60442.0,0.165447]
[1727966649257,0.0809,60449.0,60442.0,0.165447]
[1727966649483,0.0809,60449.0,60436.0,0.28434727]
[1727966649739,0.04912284,60448.0,60447.0,0.165434]
[1727966649940,0.04912284,60448.0,60441.0,0.28434727]
[1727966649941,0.24872116,60450.0,60449.0,0.165428]
[1727966650171,0.35635968,60462.0,60449.0,0.165428]
[1727966650172,0.02556968,60462.0,60459.0,0.165401]
[1727966650391,0.26762786,60460.0,60458.0,0.165403]
[1727966650608,0.0189067,60459.0,60458.0,0.165402]
[1727966650815,0.165391,60463.0,60457.0,0.330813]
[1727966650816,0.165391,60463.0,60459.0,0.165401]
[1727966651022,0.01885399,60459.0,60458.0,0.165404]
[1727966651291,0.01885399,60459.0,60452.0,0.1]
[1727966651292,0.165404,60458.0,60452.0,0.1]
[1727966651497,0.01885399,60459.0,60454.0,0.165413]
[1727966651713,0.01885399,60458.0,60452.0,0.1]
[1727966651927,0.01885399,60458.0,60455.0,0.165411]
[1727966652133,0.165407,60457.0,60453.0,0.165417]
[1727966652364,0.331784,60463.0,60454.0,0.1]
[1727966652365,0.331785,60463.0,60454.0,0.1]
[1727966652588,0.331785,60463.0,60458.0,0.001]
[1727966652589,0.165401,60459.0,60458.0,0.001]
[1727966652826,0.21457957,60459.0,60458.0,0.001]
[1727966653061,0.14127857,60459.0,60448.0,0.00428013]
[1727966653274,0.160971,60456.0,60452.0,0.165418]
[1727966653484,0.01890119,60455.0,60451.0,0.165421]
[1727966653686,0.01890119,60454.0,60447.0,0.1]
[1727966653896,0.007,60459.0,60452.0,0.16542]
[1727966653897,0.01890119,60453.0,60452.0,0.16542]
[1727966654103,0.002,60459.0,60456.0,0.330815]
[1727966654317,0.002,60459.0,60458.0,0.165404]
[1727966654530,0.002,60459.0,60448.0,0.28534727]
[1727966654531,0.02094467,60459.0,60450.0,0.1]
[1727966654743,0.04925575,60458.0,60450.0,0.1]
[1727966655012,0.330819,60456.0,60450.0,0.1]
[1727966655262,0.165424,60451.0,60448.0,0.10535036]
[1727966655498,0.01897379,60450.0,60449.0,0.165428]
[1727966655923,0.0189674,60457.0,60456.0,0.165409]
[1727966656153,0.0189674,60457.0,60456.0,0.32859571]
[1727966656814,0.0189674,60457.0,60456.0,0.46178571]
[1727966658358,0.0189674,60457.0,60456.0,0.4660347]
[1727966658567,0.00881648,60457.0,60456.0,0.4910347]
[1727966658795,0.001638,60467.0,60456.0,0.4910347]
[1727966658796,0.001638,60467.0,60466.0,0.265382]
[1727966659024,0.001638,60467.0,60466.0,0.71291598]
[1727966659267,0.001638,60467.0,60466.0,0.73591598]
[1727966659504,0.001638,60467.0,60466.0,0.76910598]
[1727966659976,0.00164,60472.0,60466.0,0.76910598]
[1727966659977,0.00164,60472.0,60471.0,0.321558]
[1727966660188,0.00164,60472.0,60471.0,0.76909198]
[1727966660411,0.001638,60483.0,60471.0,0.76909198]
[1727966660412,0.001638,60483.0,60482.0,0.165338]
[1727966660647,0.001638,60483.0,60482.0,0.45152471]
[1727966661366,0.001638,60483.0,60482.0,0.48471471]
[1727966661607,0.001638,60483.0,60482.0,0.46552471]
[1727966661830,0.001638,60483.0,60482.0,0.44252471]
[1727966662282,0.001638,60483.0,60482.0,0.26318671]
[1727966662523,0.001638,60483.0,60482.0,0.29118671]
[1727966663290,0.001638,60483.0,60482.0,0.45652471]
[1727966663735,0.001638,60483.0,60482.0,0.44252471]
[1727966663944,0.001638,60483.0,60482.0,0.43278357]
[1727966664167,0.001638,60483.0,60482.0,0.44978357]
[1727966664584,0.001638,60483.0,60482.0,0.46378357]
[1727966665019,0.001638,60483.0,60482.0,0.47678357]
[1727966665687,0.001638,60483.0,60482.0,0.45178357]
[1727966665893,0.001638,60483.0,60482.0,0.46378357]
[1727966666098,0.00164,60492.0,60484.0,0.167332]
[1727966666303,0.00164,60492.0,60484.0,0.45351871]
[1727966666723,0.00164,60492.0,60484.0,0.45151871]
[1727966667133,0.00164,60492.0,60491.0,0.265313]
[1727966667334,0.00164,60492.0,60491.0,0.73584698]
[1727966668195,0.00164,60492.0,60491.0,0.42849971]
[1727966668400,0.00164,60492.0,60491.0,0.26318671]
[1727966668615,0.00164,60492.0,60491.0,0.44149971]
[1727966668829,0.00164,60492.0,60491.0,0.26318671]
[1727966669045,0.00164,60492.0,60491.0,0.43549971]
[1727966669271,0.00164,60492.0,60491.0,0.27447873]
[1727966669700,0.00164,60492.0,60491.0,0.43979173]
[1727966670237,0.00164,60492.0,60491.0,0.724139]
[1727966670422,0.24872116,60502.0,60501.0,0.44963327]
[1727966670644,0.24872116,60510.0,60504.0,0.330553]
[1727966670956,0.57924616,60510.0,60505.0,0.16318671]
[1727966671141,0.57924616,60510.0,60494.0,0.165303]
[1727966671142,0.16529,60500.0,60494.0,0.165303]
[1727966671361,0.330567,60502.0,60496.0,0.1]
[1727966671566,0.330575,60501.0,60498.0,0.1]
[1727966671767,0.165289,60500.0,60498.0,0.26318671]
[1727966672604,0.24872116,60504.0,60498.0,0.26318671]
[1727966672804,0.330551,60505.0,60498.0,0.26318671]
[1727966672805,0.0756,60503.0,60498.0,0.26318671]
[1727966673391,0.165287,60501.0,60498.0,0.26318671]
[1727966673837,0.165284,60502.0,60498.0,0.26318671]
[1727966674048,0.330578,60500.0,60498.0,0.26318671]
[1727966674253,0.165291,60499.0,60498.0,0.26318671]
[1727966674487,0.330578,60500.0,60495.0,0.00430075]
[1727966674713,0.330578,60500.0,60487.0,0.330648]
[1727966674714,0.165309,60493.0,60487.0,0.330648]
[1727966674927,0.0786,60503.0,60484.0,0.53306843]
[1727966674928,0.165297,60497.0,60491.0,0.330624]
[1727966675120,0.165297,60497.0,60493.0,0.165308]
[1727966675359,0.24872116,60500.0,60494.0,0.16318671]
[1727966675560,0.0756,60503.0,60500.0,0.165288]
[1727966675561,0.32432116,60503.0,60500.0,0.165288]
[1727966675966,0.32432116,60503.0,60495.0,0.001]
[1727966676178,0.0756,60503.0,60502.0,0.165283]
[1727966676416,0.165268,60508.0,60504.0,0.165277]
[1727966676610,0.24872116,60510.0,60499.0,0.33058]
[1727966676611,0.33053,60509.0,60499.0,0.33058]
[1727966676821,0.165268,60508.0,60503.0,0.16528]
[1727966677052,0.330536,60508.0,60503.0,0.16318671]
[1727966677262,0.24872116,60510.0,60503.0,0.16318671]
[1727966677263,0.165272,60507.0,60503.0,0.16318671]
[1727966677476,0.330531,60509.0,60503.0,0.16318671]
[1727966677477,0.165267,60508.0,60503.0,0.32846671]
[1727966678122,0.165265,60509.0,60503.0,0.16318671]
[1727966678382,0.01869889,60508.0,60503.0,0.16318671]
[1727966678559,0.18396889,60507.0,60503.0,0.32846571]
[1727966678763,0.01869889,60506.0,60503.0,0.16318671]
[1727966679030,0.34924989,60505.0,60502.0,0.00416747]
[1727966679227,0.165275,60505.0,60504.0,0.01102837]
[1727966679448,0.165275,60505.0,60503.0,0.01103002]
[1727966679449,0.214029,60505.0,60503.0,0.01103002]
[1727966679660,0.001,60508.0,60504.0,0.01102837]
[1727966679829,0.048751,60507.0,60506.0,0.165271]
[1727966680072,0.01875038,60507.0,60506.0,0.165271]
[1727966680536,0.04875344,60507.0,60506.0,0.32845771]
[1727966680735,0.01875038,60507.0,60506.0,0.32845771]
[1727966680881,0.001638,60511.0,60510.0,0.165261]
[1727966681096,0.02043863,60511.0,60510.0,0.165261]
[1727966681885,0.05052692,60511.0,60508.0,0.330533]
[1727966682110,0.05052692,60511.0,60510.0,0.165261]
[1727966682111,0.001638,60511.0,60510.0,0.165261]
[1727966682365,0.05049535,60511.0,60510.0,0.165261]
[1727966682593,0.02042929,60511.0,60510.0,0.42844771]
[1727966682813,0.02042929,60511.0,60510.0,0.46163771]
[1727966682814,0.001638,60511.0,60510.0,0.46163771]
[1727966683026,0.001638,60511.0,60510.0,0.4708901]
[1727966683461,0.001638,60511.0,60510.0,0.4658901]
[1727966683679,0.001638,60511.0,60510.0,0.4718901]
[1727966683896,0.001638,60511.0,60510.0,0.4387001]
[1727966684379,0.02051726,60511.0,60510.0,0.4387001]
[1727966684599,0.21601033,60511.0,60510.0,0.01025239]
[1727966684849,0.05075133,60511.0,60510.0,0.01025239]
[1727966685070,0.05075133,60511.0,60510.0,0.007]
[1727966685071,0.19712185,60511.0,60510.0,0.007]
[1727966685320,0.19712185,60511.0,60505.0,0.1]
[1727966685321,0.165272,60506.0,60505.0,0.1]
[1727966685595,0.165272,60506.0,60504.0,0.00435439]
[1727966685596,0.04911538,60506.0,60504.0,0.00435439]
[1727966685845,0.18416553,60505.0,60504.0,0.00435439]
[1727966686053,0.18416553,60505.0,60494.0,0.61495727]
[1727966686054,0.165284,60502.0,60498.0,0.165292]
[1727966686278,0.04911538,60501.0,60499.0,0.16318671]
[1727966686510,0.330552,60505.0,60498.0,0.00421851]
[1727966686511,0.04911538,60500.0,60498.0,0.00421851]
[1727966686756,0.21440638,60499.0,60498.0,0.00421851]
[1727966686962,0.21440638,60499.0,60498.0,0.165294]
[1727966686963,0.04911538,60499.0,60498.0,0.165294]
[1727966687621,0.04911538,60499.0,60498.0,0.42848071]
[1727966688261,0.04911538,60499.0,60498.0,0.43278852]
[1727966688474,0.04911538,60499.0,60498.0,0.43678852]
[1727966688918,0.04911538,60499.0,60498.0,0.43478852]
[1727966689128,0.04911538,60499.0,60498.0,0.44578852]
[1727966689356,0.04911538,60499.0,60498.0,0.50197852]
[1727966689576,0.02730377,60511.0,60507.0,0.330538]
[1727966689783,0.001638,60511.0,60510.0,0.54960827]
[1727966690019,0.03202133,60511.0,60510.0,0.54960827]
[1727966690256,0.03202133,60511.0,60510.0,0.58279827]
[1727966691453,0.03202133,60511.0,60510.0,0.42844771]
[1727966691667,0.03202133,60511.0,60510.0,0.1]
[1727966691899,0.05046756,60511.0,60510.0,0.00426942]
[1727966692115,0.29512656,60511.0,60510.0,0.014]
[1727966692325,0.29512656,60511.0,60507.0,0.10430916]
[1727966692559,0.165267,60508.0,60504.0,0.165276]
[1727966692771,0.165277,60505.0,60499.0,0.24872116]
[1727966692996,0.02577276,60501.0,60500.0,0.165289]
[1727966693277,0.04874252,60501.0,60500.0,0.165289]
[1727966693487,0.04874252,60501.0,60499.0,0.330583]
[1727966693488,0.04874252,60501.0,60499.0,0.16529]
[1727966693704,0.330548,60506.0,60499.0,0.16529]
[1727966693705,0.330549,60506.0,60501.0,0.1]
[1727966693950,0.07780086,60505.0,60501.0,0.1]
[1727966694200,0.165275,60505.0,60504.0,0.1]
[1727966694426,0.02929111,60505.0,60504.0,0.1]
[1727966694641,0.19546889,60505.0,60504.0,0.1]
[1727966694856,0.21377602,60505.0,60504.0,0.1]
[1727966695066,0.24306743,60505.0,60500.0,0.330575]
[1727966695284,0.04850102,60505.0,60504.0,0.265278]
[1727966695491,0.03020242,60505.0,60504.0,0.265278]
[1727966695657,0.04850275,60505.0,60504.0,0.265278]
[1727966695880,0.07778327,60505.0,60504.0,0.265278]
[1727966696083,0.24305827,60505.0,60504.0,0.1]
[1727966696298,0.165289,60500.0,60498.0,0.00421559]
[1727966696443,0.165289,60500.0,60498.0,0.10421559]
[1727966696444,0.04850275,60499.0,60498.0,0.10421559]
[1727966696660,0.21379375,60499.0,60498.0,0.1]
[1727966696868,0.04850275,60499.0,60498.0,0.1]
[1727966697087,0.07429442,60499.0,60498.0,0.265294]
[1727966697322,0.330586,60499.0,60493.0,0.165307]
[1727966697564,0.24872116,60509.0,60492.0,0.330622]
[1727966697565,0.02579129,60494.0,60492.0,0.330622]
[1727966697776,0.05595428,60493.0,60491.0,0.17050819]
[1727966697981,0.07419886,60492.0,60491.0,0.000817]
[1727966698216,0.04840641,60492.0,60491.0,0.000817]
[1727966698655,0.24297696,60492.0,60491.0,0.000817]
[1727966699314,0.24297696,60492.0,60491.0,0.010817]
[1727966699541,0.24297696,60492.0,60491.0,0.000817]
[1727966699756,0.07766596,60492.0,60491.0,0.000817]
[1727966700384,0.07766596,60492.0,60491.0,0.45047727]
[1727966700604,0.04840641,60492.0,60491.0,0.45047727]
[1727966700897,0.04840641,60492.0,60491.0,0.000817]
[1727966700898,0.23947145,60492.0,60491.0,0.000817]
[1727966701135,0.55250702,60492.0,60491.0,0.000817]
[1727966701430,0.40993447,60492.0,60471.0,0.04926933]
[1727966701628,0.247465,60472.0,60471.0,0.24872116]
[1727966701826,0.34379975,60472.0,60471.0,0.24872116]
[1727966702048,0.34379975,60472.0,60457.0,0.04926933]
[1727966702049,0.17843475,60472.0,60457.0,0.04926933]
[1727966702252,0.17843475,60472.0,60461.0,0.165395]
[1727966702253,0.02569821,60462.0,60461.0,0.165395]
[1727966702502,0.07471664,60462.0,60461.0,0.165395]
[1727966702752,0.01885544,60462.0,60461.0,0.28856834]
[1727966702980,0.42846,60486.0,60461.0,0.28856834]
[1727966702981,0.001,60472.0,60471.0,0.166368]
[1727966703221,0.03427505,60472.0,60471.0,0.40365564]
[1727966703441,0.0229219,60472.0,60471.0,0.45305626]
[1727966703650,0.004,60472.0,60471.0,0.45305626]
[1727966703908,0.004,60472.0,60471.0,0.42955471]
[1727966704374,0.27441986,60487.0,60486.0,0.165327]
[1727966704375,0.24872116,60487.0,60486.0,0.165327]
[1727966704602,0.29763311,60487.0,60486.0,0.165327]
[1727966704814,0.29763311,60487.0,60486.0,0.71286098]
[1727966704815,0.01881229,60487.0,60486.0,0.71286098]
[1727966705027,0.01881229,60487.0,60486.0,0.81166237]
[1727966705249,0.24872116,60495.0,60486.0,0.81166237]
[1727966705250,0.24872116,60495.0,60494.0,0.165305]
[1727966705462,0.04886565,60495.0,60494.0,0.165305]
[1727966705940,0.04886565,60495.0,60491.0,0.21472689]
[1727966705941,0.21416865,60495.0,60491.0,0.21472689]
[1727966706180,0.01879448,60495.0,60486.0,0.011817]
[1727966706411,0.165324,60487.0,60486.0,0.011817]
[1727966706658,0.18411848,60487.0,60486.0,0.011817]
[1727966706902,0.18411848,60487.0,60469.0,0.04941389]
[1727966706903,0.002,60483.0,60469.0,0.04941389]
[1727966707113,0.165363,60473.0,60472.0,0.24872116]
[1727966707321,0.33075,60469.0,60466.0,0.24872116]
[1727966707551,0.04886565,60468.0,60458.0,0.24872116]
[1727966707776,0.165392,60463.0,60458.0,0.25297392]
[1727966707991,0.165397,60461.0,60458.0,0.00425276]
[1727966708200,0.37965265,60462.0,60457.0,0.165405]
[1727966708201,0.01879448,60460.0,60457.0,0.165405]
[1727966708499,0.409669,60465.0,60450.0,0.17052853]
[1727966708500,0.330808,60458.0,60450.0,0.17052853]
[1727966708703,0.0789,60465.0,60456.0,0.24872116]
[1727966708704,0.165392,60463.0,60456.0,0.24872116]
[1727966708951,0.0789,60465.0,60450.0,0.33595453]
[1727966708952,0.57951416,60461.0,60453.0,0.165415]
[1727966709159,0.03001253,60462.0,60450.0,0.00510453]
[1727966709160,0.165401,60459.0,60458.0,0.001]
[1727966709641,1.08362556,60459.0,60458.0,0.001]
[1727966709865,1.08362556,60459.0,60450.0,0.000818]
[1727966709866,0.165423,60451.0,60450.0,0.000818]
[1727966710075,0.4519208,60451.0,60450.0,0.00823978]
[1727966710321,0.47067863,60451.0,60450.0,0.000818]
[1727966710765,0.57101392,60451.0,60450.0,0.000818]
[1727966710998,0.73420063,60451.0,60450.0,0.000818]
[1727966711215,0.73420063,60451.0,60432.0,0.000819]
[1727966711216,0.165472,60433.0,60432.0,0.000819]
[1727966712132,0.8949197,60433.0,60432.0,0.000819]
[1727966712403,0.98745218,60433.0,60432.0,0.000819]
[1727966712649,1.15060159,60433.0,60432.0,0.000819]
[1727966712881,0.73890513,60433.0,60432.0,0.003819]
[1727966713101,0.55392193,60433.0,60432.0,0.003819]
[1727966713330,0.13266322,60433.0,60432.0,0.003819]
[1727966713546,0.0881,60433.0,60432.0,0.003819]
[1727966714003,0.253572,60433.0,60432.0,0.000819]
[1727966714229,0.0881,60433.0,60432.0,0.00826056]
[1727966714432,0.267572,60433.0,60432.0,0.000819]
[1727966714659,0.0881,60433.0,60432.0,0.00826056]
[1727966714888,0.257572,60433.0,60432.0,0.00826056]
[1727966715119,0.257572,60433.0,60432.0,0.000819]
[1727966715120,0.249572,60433.0,60432.0,0.000819]
[1727966715553,0.263572,60433.0,60432.0,0.001819]
[1727966715800,0.259572,60433.0,60432.0,0.001819]
[1727966716005,0.42729041,60433.0,60432.0,0.000819]
[1727966716286,0.023,60431.0,60425.0,0.000817]
[1727966716501,0.60312787,60426.0,60425.0,0.000817]
[1727966716735,0.78484628,60426.0,60425.0,0.000817]
[1727966716946,0.81450141,60426.0,60425.0,0.000817]
[1727966717369,0.78484628,60426.0,60425.0,0.000817]
[1727966717579,0.78484628,60426.0,60411.0,0.24872116]
[1727966717580,0.24453,60412.0,60411.0,0.24872116]
[1727966718014,0.16554,60409.0,60403.0,0.165553]
[1727966718236,0.16554,60409.0,60405.0,0.165548]
[1727966718237,0.165538,60409.0,60405.0,0.165548]
[1727966718449,0.24872116,60410.0,60400.0,0.000859]
[1727966718733,0.331106,60404.0,60401.0,0.00808957]
[1727966718936,0.03277212,60409.0,60401.0,0.00808957]
[1727966718937,0.165557,60402.0,60401.0,0.00808957]
[1727966719172,0.331095,60406.0,60401.0,0.00808957]
[1727966719380,0.165557,60402.0,60401.0,0.00808957]
[1727966719590,0.248332,60402.0,60401.0,0.00808957]
[1727966719798,0.165557,60402.0,60401.0,0.00808957]
[1727966720053,0.331103,60404.0,60400.0,0.000859]
[1727966720054,0.16556,60401.0,60400.0,0.000859]
[1727966720514,0.34720975,60401.0,60400.0,0.000859]
[1727966720719,0.42310975,60401.0,60400.0,0.000859]
[1727966720936,0.71583848,60401.0,60400.0,0.000859]
[1727966721144,0.71783848,60401.0,60400.0,0.000859]
[1727966721424,0.67783342,60401.0,60400.0,0.000859]
[1727966721625,0.69620081,60401.0,60400.0,0.000859]
[1727966721864,0.4230141,60401.0,60400.0,0.000859]
[1727966722088,0.4370141,60401.0,60400.0,0.001859]
[1727966722314,0.45100836,60401.0,60400.0,0.001859]
[1727966722534,0.51950836,60401.0,60400.0,0.001859]
[1727966722814,0.17676165,60401.0,60400.0,0.000859]
[1727966723041,0.1584,60401.0,60400.0,0.000859]
[1727966723281,0.0825,60401.0,60400.0,0.166421]
[1727966724269,0.0945,60401.0,60400.0,0.167421]
[1727966724506,0.26006,60401.0,60400.0,0.001859]
[1727966724739,0.24806,60401.0,60400.0,0.000859]
[1727966724944,0.24806,60401.0,60400.0,0.001859]
[1727966725159,0.42024671,60401.0,60400.0,0.001859]
[1727966725381,0.45619968,60401.0,60400.0,0.001859]
[1727966725601,0.27401297,60401.0,60400.0,0.000859]
[1727966725823,0.66696787,60401.0,60400.0,0.001859]
[1727966726055,0.41824671,60401.0,60400.0,0.001859]
[1727966726285,0.43652413,60401.0,60400.0,0.001859]
[1727966726530,0.44652413,60401.0,60400.0,0.001859]
[1727966726743,0.60971084,60401.0,60400.0,0.001859]
[1727966726949,1.035832,60401.0,60400.0,0.001859]
[1727966727155,0.16559,60390.0,60388.0,0.00082]
[1727966727365,0.60322687,60390.0,60388.0,0.00082]
[1727966727572,0.6215246,60390.0,60388.0,0.00082]
[1727966727818,0.34539101,60390.0,60388.0,0.00082]
[1727966728060,0.32709286,60390.0,60388.0,0.00082]
[1727966728323,0.331154,60395.0,60388.0,0.00082]
[1727966728543,0.16559,60390.0,60388.0,0.00082]
[1727966729232,0.33677671,60390.0,60389.0,0.001818]
[1727966729442,0.50138022,60390.0,60389.0,0.001818]
[1727966729653,0.49338022,60390.0,60389.0,0.000818]
[1727966729877,0.93101709,60390.0,60389.0,0.000818]
[1727966730082,0.96330695,60390.0,60389.0,0.000818]
[1727966730518,1.00591592,60390.0,60389.0,0.000818]
[1727966730738,0.56827905,60390.0,60389.0,0.000818]
[1727966730949,0.52567008,60390.0,60389.0,0.000818]
[1727966731198,0.47504695,60390.0,60389.0,0.000818]
[1727966731414,0.49339653,60390.0,60389.0,0.000818]
[1727966731703,0.34920982,60390.0,60389.0,0.001818]
[1727966731921,0.34919801,60390.0,60389.0,0.001818]
[1727966732348,0.34919841,60390.0,60389.0,0.001818]
[1727966732550,0.31186024,60390.0,60389.0,0.000818]
[1727966732755,0.33017371,60390.0,60389.0,0.000818]
[1727966732966,0.33617371,60390.0,60389.0,0.000818]
[1727966733181,0.31786024,60390.0,60389.0,0.000818]
[1727966733391,0.33918433,60390.0,60389.0,0.001818]
[1727966734283,0.009,60390.0,60389.0,0.167411]
[1727966734498,0.24872116,60391.0,60389.0,0.000818]
[1727966734711,0.16859,60390.0,60389.0,0.000818]
[1727966734947,0.18999449,60390.0,60389.0,0.001818]
[1727966735173,0.27326036,60390.0,60389.0,0.001818]
[1727966735395,0.21448626,60390.0,60389.0,0.000818]
[1727966735638,0.21348626,60390.0,60389.0,0.000818]
[1727966735844,0.21548626,60390.0,60389.0,0.001818]
[1727966736288,0.466955,60390.0,60389.0,0.000818]
[1727966736736,0.471955,60390.0,60389.0,0.001818]
[1727966737182,0.22048626,60390.0,60389.0,0.001818]
[1727966737412,0.05489626,60390.0,60389.0,0.001818]
[1727966737621,0.05489626,60390.0,60389.0,0.167411]
[1727966737832,0.05125026,60390.0,60389.0,0.167411]
[1727966738057,0.03654938,60390.0,60389.0,0.167411]
[1727966738508,0.03654938,60390.0,60389.0,0.33494551]
[1727966738730,0.03654938,60390.0,60389.0,0.45794551]
[1727966738731,0.007,60390.0,60389.0,0.45794551]
[1727966738961,0.0825,60401.0,60398.0,0.288568]
[1727966739178,0.0825,60401.0,60398.0,0.93003292]
[1727966739179,0.27823441,60399.0,60398.0,0.93003292]
[1727966739431,0.02951325,60399.0,60398.0,0.93003292]
[1727966739641,0.0825,60401.0,60400.0,0.288562]
[1727966739871,0.0825,60401.0,60400.0,0.70168971]
[1727966739872,0.08040226,60401.0,60400.0,0.70168971]
[1727966740087,0.24872116,60409.0,60408.0,0.32173]
[1727966740306,0.24872116,60409.0,60408.0,0.49231494]
[1727966740547,0.24872116,60417.0,60416.0,0.165519]
[1727966740771,0.24872116,60417.0,60409.0,0.331073]
[1727966740772,0.27798848,60417.0,60409.0,0.331073]
[1727966740993,0.02926732,60416.0,60409.0,0.331073]
[1727966741201,0.331013,60421.0,60408.0,0.1]
[1727966741202,0.02926732,60415.0,60408.0,0.1]
[1727966741408,0.24872116,60420.0,60413.0,0.165526]
[1727966741409,0.165515,60418.0,60413.0,0.165526]
[1727966741619,0.24872116,60420.0,60408.0,0.1]
[1727966741910,0.02919949,60419.0,60417.0,0.165515]
[1727966742100,0.02919949,60418.0,60417.0,0.165515]
[1727966742324,0.02919949,60418.0,60415.0,0.16552]
[1727966742553,0.02919949,60417.0,60416.0,0.165518]
[1727966742752,0.02919949,60417.0,60412.0,0.331058]
[1727966742753,0.02919949,60417.0,60413.0,0.496577]
[1727966742965,0.02919949,60417.0,60408.0,0.26737483]
[1727966742966,0.02919949,60416.0,60409.0,0.331072]
[1727966743206,0.02919949,60415.0,60414.0,0.165524]
[1727966743444,0.02919949,60415.0,60414.0,0.32871071]
[1727966743897,0.02919949,60415.0,60410.0,0.165533]
[1727966744128,0.165528,60413.0,60408.0,0.00418812]
[1727966744351,0.02919949,60412.0,60410.0,0.165534]
[1727966744587,0.001638,60415.0,60407.0,0.331083]
[1727966744588,0.02919949,60411.0,60408.0,0.165538]
[1727966744812,0.001638,60415.0,60413.0,0.165525]
[1727966745041,0.001638,60415.0,60407.0,0.00421939]
[1727966745042,0.02922981,60414.0,60407.0,0.00421939]
[1727966745253,0.02922981,60414.0,60402.0,0.59382687]
[1727966745254,0.002638,60415.0,60414.0,0.168524]
[1727966745738,0.03191678,60415.0,60414.0,0.32871071]
[1727966745962,0.03191678,60415.0,60414.0,0.165524]
[1727966746183,0.03191678,60415.0,60413.0,0.331053]
[1727966746184,0.04091678,60415.0,60413.0,0.001]
[1727966746399,0.44352494,60414.0,60413.0,0.001]
[1727966746571,0.27440378,60414.0,60413.0,0.001]
[1727966746802,0.16555,60405.0,60401.0,0.165559]
[1727966747108,0.02927878,60404.0,60402.0,0.41427716]
[1727966747315,0.331072,60410.0,60402.0,0.01085036]
[1727966747316,0.0293659,60403.0,60402.0,0.01085036]
[1727966747529,0.1949199,60403.0,60402.0,0.01085036]
[1727966747741,0.16556,60401.0,60400.0,4e-05]